fUST/lending_fUST_20250427
["ID","MTS","AMOUNT","RATE_DAILY","PERIOD"]
[359091683,1745703049596,-400.0,0.00017534,2]
[359091684,1745703049606,-400.0,0.00017534,2]
[359091685,1745703049616,-595.96,0.00017534,2]
[359091686,1745703049626,-400.0,0.00017534,2]
[359091687,1745703049638,-400.0,0.00017534,2]
[359091688,1745703049647,-942.67,0.00017534,2]
[359091689,1745703049657,-400.0,0.00017534,2]
[359091690,1745703049666,-400.0,0.00017534,2]
[359091691,1745703049676,-1408.24,0.00017534,2]
[359091692,1745703049685,-507.16219905,0.00017573,2]
[359091693,1745703049696,-360.06,0.00017798,3]
[359091694,1745703049706,-400.0,0.00017808,2]
[359091695,1745703049716,-400.0,0.00017808,2]
[359091696,1745703049726,-400.0,0.00017808,2]
[359091697,1745703049736,-400.0,0.00017808,2]
[359091698,1745703049746,-400.0,0.00017808,2]
[359091699,1745703049757,-421.16,0.00017808,2]
[359091700,1745703049767,-400.0,0.00017808,2]
[359091701,1745703049776,-400.0,0.00017808,2]
[359091702,1745703049786,-400.0,0.00017808,2]
[359091703,1745703049796,-400.0,0.00017808,2]
[359091704,1745703049805,-200.0,0.00017808,2]
[359091705,1745703049815,-400.0,0.00017808,2]
[359091706,1745703049825,-200.0,0.00017808,2]
[359091707,1745703049835,-400.0,0.00017808,2]
[359091708,1745703049845,-200.0,0.00017808,2]
[359091709,1745703049854,-400.0,0.00017808,2]
[359091710,1745703049864,-901.5,0.00017808,2]
[359091711,1745703049873,-504.21,0.00017808,2]
[359091712,1745703049885,-400.0,0.00017808,2]
[359091713,1745703049895,-400.0,0.00017808,2]
[359091714,1745703049904,-447.58,0.00017808,2]
[359091715,1745703049914,-478.97,0.00017808,2]
[359091716,1745703049924,-401.86824994,0.00017808,2]
[359091717,1745703049933,-400.0,0.00017808,2]
[359091718,1745703049943,-804.98,0.00017808,2]
[359091719,1745703049952,-400.0,0.00017808,2]
[359091720,1745703049962,-413.03,0.00017808,2]
[359091721,1745703049972,-400.0,0.00017808,2]
[359091722,1745703049981,-559.15,0.00017808,2]
[359091723,1745703049991,-400.0,0.00017808,2]
[359091724,1745703050003,-400.0,0.00017808,2]
[359091725,1745703050013,-400.0,0.00017808,2]
[359091726,1745703050024,-400.0,0.00017808,2]
[359091727,1745703050035,-452.4,0.00017808,2]
[359091728,1745703050045,-400.0,0.00017808,2]
[359091729,1745703050057,-465.08,0.00017808,2]
[359091730,1745703050068,-400.0,0.00017808,2]
[359091731,1745703050078,-353.66204518,0.00017808,2]
[359091732,1745703050088,-431.46,0.00017808,2]
[359091733,1745703050099,-400.0,0.00017808,2]
[359091734,1745703050110,-163.14275027,0.00017808,2]
[359091735,1745703050121,-1118.65,0.00017808,2]
[359091736,1745703050131,-1226.42,0.00017808,2]
[359091737,1745703050140,-400.0,0.00017808,2]
[359091738,1745703050150,-400.0,0.00017808,2]
[359091739,1745703050161,-400.0,0.00017808,2]
[359091740,1745703050171,-400.0,0.00017808,2]
[359091741,1745703050184,-400.0,0.00017808,2]
[359091742,1745703050194,-400.0,0.00017808,2]
[359091743,1745703050204,-400.0,0.00017808,2]
[359091744,1745703050215,-1156.24,0.00017808,2]
[359091745,1745703050227,-400.0,0.00017808,2]
[359091746,1745703050237,-400.0,0.00017808,2]
[359091747,1745703050248,-1450.33,0.00017808,2]
[359091748,1745703050257,-600.8,0.00017808,2]
[359091749,1745703050267,-400.0,0.00017808,2]
[359091750,1745703050278,-400.0,0.00017808,2]
[359091751,1745703050288,-699.23,0.00017808,2]
[359091752,1745703050298,-413.26,0.00017808,2]
[359091753,1745703050308,-2041.14,0.00017808,2]
[359091754,1745703050319,-400.0,0.00017808,2]
[359091755,1745703050330,-400.0,0.00017808,2]
[359091756,1745703050340,-468.11,0.00017808,2]
[359091757,1745703050349,-400.0,0.00017808,2]
[359091758,1745703050360,-400.0,0.00017808,2]
[359091759,1745703050371,-400.0,0.00017808,2]
[359091760,1745703050381,-400.0,0.00017808,2]
[359091761,1745703050391,-400.0,0.00017808,2]
[359091762,1745703050401,-400.0,0.00017808,2]
[359091763,1745703050413,-824.92,0.00017808,2]
[359091764,1745703050425,-467.68,0.00017808,2]
[359091765,1745703050436,-400.0,0.00017808,2]
[359091766,1745703050447,-400.0,0.00017808,2]
[359091767,1745703050459,-2453.2,0.00017808,2]
[359091768,1745703050468,-400.0,0.00017808,2]
[359091769,1745703050478,-1408.49,0.00017808,2]
[359091770,1745703050487,-326.9,0.00017808,2]
[359091771,1745703050497,-505.78742749,0.00017808,2]
[359091772,1745703050506,-547.17,0.00017808,2]
[359091773,1745703050515,-1069.63,0.00017808,2]
[359091774,1745703050525,-400.0,0.00017808,2]
[359091775,1745703050535,-400.0,0.00017808,2]
[359091776,1745703050544,-400.0,0.00017808,2]
[359091777,1745703050554,-400.0,0.00017808,2]
[359091778,1745703050563,-528.48,0.00017808,2]
[359091779,1745703050573,-691.26,0.00017808,2]
[359091780,1745703050584,-1281.68,0.00017808,2]
[359091781,1745703050593,-400.0,0.00017808,2]
[359091782,1745703050603,-1275.47,0.00017808,2]
[359091783,1745703050613,-400.0,0.00017808,2]
[359091784,1745703050623,-400.0,0.00017808,2]
[359091785,1745703050634,-511.36,0.00017808,2]
[359091786,1745703050643,-413.91442937,0.00017808,2]
[359091787,1745703050654,-400.0,0.00017808,2]
[359091788,1745703050664,-577.9,0.00017808,2]
[359091789,1745703050674,-484.51,0.00017808,2]
[359091790,1745703050683,-1440.26,0.00017808,2]
[359091791,1745703050694,-224.98816468,0.00017808,2]
[359091792,1745703050704,-1276.91,0.00017808,2]
[359091793,1745703050714,-400.0,0.00017808,2]
[359091794,1745703050724,-405.72,0.00017808,2]
[359091795,1745703050734,-439.46,0.00017808,2]
[359091796,1745703050745,-400.0,0.00017808,2]
[359091797,1745703050754,-400.0,0.00017808,2]
[359091798,1745703050764,-595.96,0.00017808,2]
[359091799,1745703050774,-400.0,0.00017808,2]
[359091800,1745703050784,-400.0,0.00017808,2]
[359091801,1745703050793,-942.67,0.00017808,2]
[359091802,1745703050803,-400.0,0.00017808,2]
[359091803,1745703050813,-300.0,0.00017808,2]
[359091804,1745703050822,-1408.24,0.00017808,2]
[359091805,1745703050831,-840.35238838,0.00017923,2]
[359091806,1745703050841,-160.0,0.00017923,2]
[359091807,1745703050851,-421.06755229,0.00017923,2]
[359091808,1745703050861,-160.0,0.00017923,2]
[359091809,1745703050871,-160.0,0.00017923,2]
[359091810,1745703050880,-160.0,0.00017923,2]
[359091811,1745703050890,-160.0,0.00017923,2]
[359091812,1745703050900,-12582.09293779,0.00017923,2]
[359091813,1745703050910,-160.0,0.00017923,2]
[359091814,1745703050919,-160.0,0.00017923,2]
[359091815,1745703050929,-160.0,0.00017924,2]
[359091816,1745703050940,-400.0,0.00018082,2]
[359091817,1745703050950,-400.0,0.00018082,2]
[359091818,1745703050960,-500.0,0.00018082,2]
[359091819,1745703050970,-400.0,0.00018082,2]
[359091820,1745703050979,-400.0,0.00018082,2]
[359091821,1745703050989,-421.16,0.00018082,2]
[359091822,1745703050998,-400.0,0.00018082,2]
[359091823,1745703051007,-400.0,0.00018082,2]
[359091824,1745703051017,-400.0,0.00018082,2]
[359091825,1745703051027,-400.0,0.00018082,2]
[359091826,1745703051037,-400.0,0.00018082,2]
[359091827,1745703051047,-400.0,0.00018082,2]
[359091828,1745703051056,-400.0,0.00018082,2]
[359091829,1745703051066,-901.5,0.00018082,2]
[359091830,1745703051076,-504.21,0.00018082,2]
[359091831,1745703051086,-400.0,0.00018082,2]
[359091832,1745703051095,-400.0,0.00018082,2]
[359091833,1745703051105,-447.58,0.00018082,2]
[359091834,1745703051115,-478.97,0.00018082,2]
[359091835,1745703051126,-151.0,0.00018082,2]
[359091836,1745703051136,-165.180743,0.00018082,2]
[359091837,1745703051145,-1807.068711,0.00018082,2]
[359091838,1745703051155,-400.0,0.00018082,2]
[359091839,1745703051165,-1807.068711,0.00018082,2]
[359091840,1745703051175,-804.98,0.00018082,2]
[359091841,1745703051189,-400.0,0.00018082,2]
[359091842,1745703051198,-413.03,0.00018082,2]
[359091843,1745703051208,-400.0,0.00018082,2]
[359091844,1745703051217,-559.15,0.00018082,2]
[359091845,1745703051226,-400.0,0.00018082,2]
[359091846,1745703051235,-400.0,0.00018082,2]
[359091847,1745703051245,-400.0,0.00018082,2]
[359091848,1745703051254,-400.0,0.00018082,2]
[359091849,1745703051263,-452.4,0.00018082,2]
[359091850,1745703051273,-400.0,0.00018082,2]
[359091851,1745703051284,-465.08,0.00018082,2]
[359091852,1745703051295,-400.0,0.00018082,2]
[359091853,1745703051305,-431.46,0.00018082,2]
[359091854,1745703051315,-400.0,0.00018082,2]
[359091855,1745703051324,-1118.65,0.00018082,2]
[359091856,1745703051335,-1226.42,0.00018082,2]
[359091857,1745703051345,-400.0,0.00018082,2]
[359091858,1745703051354,-400.0,0.00018082,2]
[359091859,1745703051364,-400.0,0.00018082,2]
[359091860,1745703051374,-400.0,0.00018082,2]
[359091861,1745703051384,-151.0,0.00018082,2]
[359091862,1745703051394,-400.0,0.00018082,2]
[359091863,1745703051405,-400.0,0.00018082,2]
[359091864,1745703051416,-151.0,0.00018082,2]
[359091865,1745703051426,-400.0,0.00018082,2]
[359091866,1745703051436,-1156.24,0.00018082,2]
[359091867,1745703051447,-400.0,0.00018082,2]
[359091868,1745703051457,-179.05360081,0.00018082,2]
[359091869,1745703051467,-1450.33,0.00018082,2]
[359091870,1745703051477,-600.8,0.00018082,2]
[359091871,1745703051486,-151.0,0.00018082,2]
[359091872,1745703051496,-400.0,0.00018082,2]
[359091873,1745703051505,-400.0,0.00018082,2]
[359091874,1745703051516,-151.0,0.00018082,2]
[359091875,1745703051528,-151.0,0.00018082,2]
[359091876,1745703051539,-699.23,0.00018082,2]
[359091877,1745703051550,-413.26,0.00018082,2]
[359091878,1745703051560,-2041.14,0.00018082,2]
[359091879,1745703051570,-400.0,0.00018082,2]
[359091880,1745703051580,-400.0,0.00018082,2]
[359091881,1745703051590,-468.11,0.00018082,2]
[359091882,1745703051599,-400.0,0.00018082,2]
[359091883,1745703051609,-400.0,0.00018082,2]
[359091884,1745703051619,-400.0,0.00018082,2]
[359091885,1745703051629,-400.0,0.00018082,2]
[359091886,1745703051640,-400.0,0.00018082,2]
[359091887,1745703051650,-400.0,0.00018082,2]
[359091888,1745703051660,-824.92,0.00018082,2]
[359091889,1745703051669,-151.0,0.00018082,2]
[359091890,1745703051679,-467.68,0.00018082,2]
[359091891,1745703051689,-400.0,0.00018082,2]
[359091892,1745703051699,-400.0,0.00018082,2]
[359091893,1745703051709,-151.0,0.00018082,2]
[359091894,1745703051718,-2453.2,0.00018082,2]
[359091895,1745703051728,-400.0,0.00018082,2]
[359091896,1745703051737,-1408.49,0.00018082,2]
[359091897,1745703051748,-155.918324,0.00018082,2]
[359091898,1745703051757,-547.17,0.00018082,2]
[359091899,1745703051767,-1069.63,0.00018082,2]
[359091900,1745703051777,-400.0,0.00018082,2]
[359091901,1745703051787,-400.0,0.00018082,2]
[359091902,1745703051796,-400.0,0.00018082,2]
[359091903,1745703051806,-400.0,0.00018082,2]
[359091904,1745703051816,-528.48,0.00018082,2]
[359091905,1745703051825,-691.26,0.00018082,2]
[359091906,1745703051835,-1281.68,0.00018082,2]
[359091907,1745703051844,-400.0,0.00018082,2]
[359091908,1745703051854,-1275.47,0.00018082,2]
[359091909,1745703051864,-400.0,0.00018082,2]
[359091910,1745703051873,-400.0,0.00018082,2]
[359091911,1745703051883,-511.36,0.00018082,2]
[359091912,1745703051892,-400.0,0.00018082,2]
[359091913,1745703051902,-577.9,0.00018082,2]
[359091914,1745703051912,-484.51,0.00018082,2]
[359091915,1745703051921,-1440.26,0.00018082,2]
[359091916,1745703051931,-168.880015,0.00018082,2]
[359091917,1745703051942,-1276.91,0.00018082,2]
[359091918,1745703051951,-400.0,0.00018082,2]
[359091919,1745703051961,-405.72,0.00018082,2]
[359091920,1745703051970,-439.46,0.00018082,2]
[359091921,1745703051980,-400.0,0.00018082,2]
[359091922,1745703051990,-268.70464,0.00018082,2]
[359091923,1745703052000,-400.0,0.00018082,2]
[359091924,1745703052009,-595.96,0.00018082,2]
[359091925,1745703052019,-400.0,0.00018082,2]
[359091926,1745703052029,-400.0,0.00018082,2]
[359091927,1745703052038,-942.67,0.00018082,2]
[359091928,1745703052048,-400.0,0.00018082,2]
[359091929,1745703052058,-1408.24,0.00018082,2]
[359091930,1745703052068,-151.0,0.00018348,2]
[359091931,1745703052078,-151.0,0.00018348,2]
[359091932,1745703052088,-1534.07759903,0.00018348,2]
[359091933,1745703052098,-500.0,0.00018355,2]
[359091934,1745703052108,-400.0,0.00018356,2]
[359091935,1745703052118,-200.0,0.00018356,2]
[359091936,1745703052127,-400.0,0.00018356,2]
[359091937,1745703052138,-201.85,0.00018356,2]
[359091938,1745703052147,-421.16,0.00018356,2]
[359091939,1745703052158,-400.0,0.00018356,2]
[359091940,1745703052167,-211.43393584,0.00018356,2]
[359091941,1745703052177,-400.0,0.00018356,2]
[359091942,1745703052369,-400.0,0.00018356,2]
[359091943,1745703052380,-400.0,0.00018356,2]
[359091944,1745703052390,-400.0,0.00018356,2]
[359091945,1745703052403,-400.0,0.00018356,2]
[359091946,1745703052413,-901.5,0.00018356,2]
[359091947,1745703052422,-504.21,0.00018356,2]
[359091948,1745703052432,-400.0,0.00018356,2]
[359091949,1745703052443,-400.0,0.00018356,2]
[359091950,1745703052452,-447.58,0.00018356,2]
[359091951,1745703052462,-478.97,0.00018356,2]
[359091952,1745703052471,-400.0,0.00018356,2]
[359091953,1745703052481,-804.98,0.00018356,2]
[359091954,1745703052491,-400.0,0.00018356,2]
[359091955,1745703052501,-413.03,0.00018356,2]
[359091956,1745703052511,-400.0,0.00018356,2]
[359091957,1745703052522,-559.15,0.00018356,2]
[359091958,1745703052532,-400.0,0.00018356,2]
[359091959,1745703052544,-400.0,0.00018356,2]
[359091960,1745703052555,-151.0,0.00018356,2]
[359091961,1745703052566,-400.0,0.00018356,2]
[359091962,1745703052576,-400.0,0.00018356,2]
[359091963,1745703052587,-452.4,0.00018356,2]
[359091964,1745703052598,-400.0,0.00018356,2]
[359091965,1745703052608,-465.08,0.00018356,2]
[359091966,1745703052620,-400.0,0.00018356,2]
[359091967,1745703052630,-151.0,0.00018356,2]
[359091968,1745703052640,-431.46,0.00018356,2]
[359091969,1745703052650,-400.0,0.00018356,2]
[359091970,1745703052660,-1118.65,0.00018356,2]
[359091971,1745703052671,-1226.42,0.00018356,2]
[359091972,1745703052682,-400.0,0.00018356,2]
[359091973,1745703052692,-151.0,0.00018356,2]
[359091974,1745703052702,-400.0,0.00018356,2]
[359091975,1745703052713,-400.0,0.00018356,2]
[359091976,1745703052725,-466.34027055,0.00018356,2]
[359091977,1745703052735,-400.0,0.00018356,2]
[359091978,1745703052745,-400.0,0.00018356,2]
[359091979,1745703052756,-538.63,0.00018356,2]
[359091980,1745703052767,-1156.24,0.00018356,2]
[359091981,1745703052778,-400.0,0.00018356,2]
[359091982,1745703052789,-1450.33,0.00018356,2]
[359091983,1745703052800,-600.8,0.00018356,2]
[359091984,1745703052810,-400.0,0.00018356,2]
[359091985,1745703052821,-526.03754069,0.00018356,2]
[359091986,1745703052833,-699.23,0.00018356,2]
[359091987,1745703052844,-413.26,0.00018356,2]
[359091988,1745703052854,-2041.14,0.00018356,2]
[359091989,1745703052865,-400.0,0.00018356,2]
[359091990,1745703052875,-151.28497252,0.00018356,2]
[359091991,1745703052885,-468.11,0.00018356,2]
[359091992,1745703052895,-400.0,0.00018356,2]
[359091993,1745703052906,-400.0,0.00018356,2]
[359091994,1745703052916,-269.25667642,0.00018356,2]
[359091995,1745703052926,-400.0,0.00018356,2]
[359091996,1745703052936,-400.0,0.00018356,2]
[359091997,1745703052946,-400.0,0.00018356,2]
[359091998,1745703052956,-824.92,0.00018356,2]
[359091999,1745703052966,-467.68,0.00018356,2]
[359092000,1745703052977,-400.0,0.00018356,2]
[359092001,1745703052987,-400.0,0.00018356,2]
[359092002,1745703052998,-2453.2,0.00018356,2]
[359092003,1745703053009,-400.0,0.00018356,2]
[359092004,1745703053019,-1408.49,0.00018356,2]
[359092005,1745703053031,-547.17,0.00018356,2]
[359092006,1745703053040,-1069.63,0.00018356,2]
[359092007,1745703053050,-400.0,0.00018356,2]
[359092008,1745703053060,-400.0,0.00018356,2]
[359092009,1745703053070,-400.0,0.00018356,2]
[359092010,1745703053081,-516.26,0.00018356,2]
[359092011,1745703053091,-528.48,0.00018356,2]
[359092012,1745703053100,-691.26,0.00018356,2]
[359092013,1745703053111,-1281.68,0.00018356,2]
[359092014,1745703053121,-400.0,0.00018356,2]
[359092015,1745703053131,-1275.47,0.00018356,2]
[359092016,1745703053141,-400.0,0.00018356,2]
[359092017,1745703053151,-400.0,0.00018356,2]
[359092018,1745703053161,-511.36,0.00018356,2]
[359092019,1745703053172,-400.0,0.00018356,2]
[359092020,1745703053184,-577.9,0.00018356,2]
[359092021,1745703053194,-484.51,0.00018356,2]
[359092022,1745703053204,-1440.26,0.00018356,2]
[359092023,1745703053214,-1276.91,0.00018356,2]
[359092024,1745703053224,-400.0,0.00018356,2]
[359092025,1745703053235,-405.72,0.00018356,2]
[359092026,1745703053246,-439.46,0.00018356,2]
[359092027,1745703053257,-400.0,0.00018356,2]
[359092028,1745703053267,-400.0,0.00018356,2]
[359092029,1745703053277,-595.96,0.00018356,2]
[359092030,1745703053287,-200.0,0.00018356,2]
[359092031,1745703053297,-400.0,0.00018356,2]
[359092032,1745703053307,-942.67,0.00018356,2]
[359092033,1745703053319,-400.0,0.00018356,2]
[359092034,1745703053330,-1408.24,0.00018356,2]
[359092035,1745703053341,-156.587,0.00018417,2]
[359092036,1745703053353,-450.0,0.0001847,2]
[359092037,1745703053364,-151.0,0.0001863,2]
[359092038,1745703053374,-151.0,0.0001863,2]
[359092039,1745703053383,-400.0,0.0001863,2]
[359092040,1745703053394,-400.0,0.0001863,2]
[359092041,1745703053404,-421.16,0.0001863,2]
[359092042,1745703053414,-400.0,0.0001863,2]
[359092043,1745703053424,-281.10849869,0.0001863,2]
[359092044,1745703053435,-400.0,0.0001863,2]
[359092045,1745703053446,-400.0,0.0001863,2]
[359092046,1745703053456,-151.0,0.0001863,2]
[359092047,1745703053467,-400.0,0.0001863,2]
[359092048,1745703053478,-151.0,0.0001863,2]
[359092049,1745703053489,-400.0,0.0001863,2]
[359092050,1745703053499,-901.5,0.0001863,2]
[359092051,1745703053509,-504.21,0.0001863,2]
[359092052,1745703053520,-400.0,0.0001863,2]
[359092053,1745703053529,-400.0,0.0001863,2]
[359092054,1745703053539,-447.58,0.0001863,2]
[359092055,1745703053551,-478.97,0.0001863,2]
[359092056,1745703053561,-400.0,0.0001863,2]
[359092057,1745703053570,-728.09921037,0.0001863,2]
[359092058,1745703053591,-76.88078963,0.0001863,2]
[359092059,1745703053601,-400.0,0.0001863,2]
[359092060,1745703053611,-240.74467063,0.0001863,2]
[359092061,1745703053646,-172.28532937,0.0001863,2]
[359092062,1745703053657,-273.50641823,0.0001863,2]
[359092063,1745703053748,-126.49358177,0.0001863,2]
[359092064,1745703053758,-559.15,0.0001863,2]
[359092065,1745703053768,-400.0,0.0001863,2]
[359092066,1745703053777,-400.0,0.0001863,2]
[359092067,1745703053787,-400.0,0.0001863,2]
[359092068,1745703053797,-400.0,0.0001863,2]
[359092069,1745703053807,-452.4,0.0001863,2]
[359092070,1745703053817,-400.0,0.0001863,2]
[359092071,1745703053826,-465.08,0.0001863,2]
[359092072,1745703053836,-431.46,0.0001863,2]
[359092073,1745703053845,-400.0,0.0001863,2]
[359092074,1745703053856,-1118.65,0.0001863,2]
[359092075,1745703053865,-1226.42,0.0001863,2]
[359092076,1745703053876,-400.0,0.0001863,2]
[359092077,1745703053886,-400.0,0.0001863,2]
[359092078,1745703053896,-400.0,0.0001863,2]
[359092079,1745703053906,-400.0,0.0001863,2]
[359092080,1745703053916,-400.0,0.0001863,2]
[359092081,1745703053926,-1156.24,0.0001863,2]
[359092082,1745703053936,-400.0,0.0001863,2]
[359092083,1745703053946,-1450.33,0.0001863,2]
[359092084,1745703053956,-600.8,0.0001863,2]
[359092085,1745703053965,-406.81420696,0.0001863,2]
[359092086,1745703053976,-699.23,0.0001863,2]
[359092087,1745703053985,-413.26,0.0001863,2]
[359092088,1745703053995,-2041.14,0.0001863,2]
[359092089,1745703054005,-400.0,0.0001863,2]
[359092090,1745703054014,-468.11,0.0001863,2]
[359092091,1745703054024,-400.0,0.0001863,2]
[359092092,1745703054034,-300.0,0.0001863,2]
[359092093,1745703054044,-400.0,0.0001863,2]
[359092094,1745703054054,-400.0,0.0001863,2]
[359092095,1745703054063,-369.93021892,0.0001863,2]
[359092096,1745703054073,-824.92,0.0001863,2]
[359092097,1745703054084,-467.68,0.0001863,2]
[359092098,1745703054093,-400.0,0.0001863,2]
[359092099,1745703054102,-400.0,0.0001863,2]
[359092100,1745703054112,-2453.2,0.0001863,2]
[359092101,1745703054121,-400.0,0.0001863,2]
[359092102,1745703054131,-1408.49,0.0001863,2]
[359092103,1745703054141,-547.17,0.0001863,2]
[359092104,1745703054152,-1069.63,0.0001863,2]
[359092105,1745703054163,-400.0,0.0001863,2]
[359092106,1745703054174,-400.0,0.0001863,2]
[359092107,1745703054198,-400.0,0.0001863,2]
[359092108,1745703054211,-528.48,0.0001863,2]
[359092109,1745703054222,-691.26,0.0001863,2]
[359092110,1745703054234,-1281.68,0.0001863,2]
[359092111,1745703054246,-400.0,0.0001863,2]
[359092112,1745703054257,-1275.47,0.0001863,2]
[359092113,1745703054268,-359.65340752,0.0001863,2]
[359092177,1745704049141,-926.99775337,0.00013426,2]
[359092180,1745704153087,-249.69035377,0.0001327,2]
[359092183,1745704161091,-313.44564692,0.0001327,2]
[359092184,1745704161114,-4898.5341898,0.00013404,2]
[359092215,1745704232133,-487.31355088,0.00013594,2]
[359092216,1745704232249,-1509.00373132,0.00013594,2]
[359092217,1745704232259,-459.4576944,0.00013699,2]
[359092218,1745704232270,-396.960835,0.00013699,2]
[359092219,1745704232280,-300.0,0.00014402,2]
[359092220,1745704232291,-300.0,0.00014402,2]
[359092221,1745704232511,-27327.55571106,0.00014403,2]
[359092222,1745704232525,-22672.44428894,0.00014403,2]
[359092223,1745704232536,-500.0,0.00014403,2]
[359092224,1745704232546,-500.0,0.00014403,2]
[359092225,1745704232557,-500.0,0.00014403,2]
[359092226,1745704232567,-500.0,0.00014403,2]
[359092227,1745704232578,-500.0,0.00014403,2]
[359092228,1745704232589,-500.0,0.00014403,2]
[359092229,1745704232600,-500.0,0.00014403,2]
[359092230,1745704232612,-250.00000001,0.00014403,2]
[359092231,1745704232622,-500.0,0.00014403,2]
[359092232,1745704232633,-585.23897682,0.00014403,2]
[359092233,1745704232644,-500.0,0.00014403,2]
[359092234,1745704232654,-500.0,0.00014403,2]
[359092235,1745704232664,-500.0,0.00014403,2]
[359092236,1745704232676,-500.0,0.00014403,2]
[359092237,1745704232687,-500.0,0.00014403,2]
[359092238,1745704232697,-500.0,0.00014403,2]
[359092239,1745704232707,-500.0,0.00014403,2]
[359092240,1745704232717,-500.0,0.00014403,2]
[359092241,1745704232727,-566.28344063,0.00014403,2]
[359092242,1745704232737,-500.0,0.00014403,2]
[359092243,1745704232747,-500.0,0.00014403,2]
[359092244,1745704232757,-500.0,0.00014403,2]
[359092245,1745704232766,-500.0,0.00014403,2]
[359092246,1745704232778,-500.0,0.00014403,2]
[359092247,1745704232789,-500.0,0.00014403,2]
[359092248,1745704232799,-500.0,0.00014403,2]
[359092249,1745704232809,-424.06890339,0.00014403,2]
[359092250,1745704232819,-500.0,0.00014403,2]
[359092251,1745704232828,-500.0,0.00014403,2]
[359092252,1745704232837,-500.0,0.00014403,2]
[359092253,1745704232847,-500.0,0.00014403,2]
[359092254,1745704232857,-500.0,0.00014403,2]
[359092255,1745704232868,-500.0,0.00014403,2]
[359092256,1745704232877,-500.0,0.00014403,2]
[359092257,1745704232888,-500.0,0.00014403,2]
[359092258,1745704232898,-500.0,0.00014403,2]
[359092259,1745704232907,-500.0,0.00014403,2]
[359092260,1745704232917,-500.0,0.00014403,2]
[359092261,1745704232927,-500.0,0.00014403,2]
[359092262,1745704232939,-500.0,0.00014403,2]
[359092263,1745704232949,-500.0,0.00014403,2]
[359092264,1745704232960,-8458.45043094,0.0001463,2]
[359092265,1745704232971,-24900.0,0.0001473,2]
[359092266,1745704232982,-8458.45043093,0.00015331,2]
[359092267,1745704232992,-250.0,0.00015704,2]
[359092268,1745704233003,-420.0,0.00015772,2]
[359092269,1745704233014,-188.53764842,0.00016031,2]
[359092270,1745704233024,-500.0,0.00016031,2]
[359092271,1745704233233,-391.53070824,0.00016031,2]
[359092272,1745704233245,-500.0,0.00016031,2]
[359092273,1745704233256,-500.0,0.00016031,2]
[359092274,1745704233267,-500.0,0.00016031,2]
[359092275,1745704233278,-217.38462793,0.00016031,2]
[359092276,1745704233288,-8342.42657218,0.00016032,2]
[359092277,1745704233441,-116.02385875,0.00016032,2]
[359092278,1745704233452,-1372.42291297,0.000161,2]
[359092279,1745704233462,-205.58365199,0.00016164,2]